Workbook

Sheet Arbeit 1
A1: Settings | C1: Überschrift und Datum eingeben | M1: 0 | N1: 5.7 | Q1: =IF((A3-(A3*C3/100))>=0,TRUE,FALSE) -> TRUE
A2: Gesamtpunktzahl | C2: 1 bis ...% | D2: 2 bis ...% | E2: 3 bis ...% | F2: 4 bis ...% | G2: 5 bis ...% | M2: =IF($Q$43=TRUE,(ROUND(($A$3*$G$3/100),1))-(1*$P$43),"") -> 8.6 | N2: 5.6
A3: 40 | C3: 98 | D3: 85 | E3: 69 | F3: 50 | G3: 24 | K3: 6 | M3: =ROUND(($A$3*$G$3/100),1) -> 9.6 | N3: 5.5 | P3: =ROUND((((A3*C3/100)-(A3*D3/100))/10),1) -> 0.5 | Q3: =IF(P3>=0,TRUE,FALSE) -> TRUE | R3: =IF(B6<>"",VLOOKUP(B6,M1:N45,2,1),"") -> 
M4: =IF($Q$33=TRUE,(ROUND(($A$3*$F$3/100),1))-(9*$P$33),"") -> 11 | N4: 5.4
A5: Name | B5: Punkte | C5: Note | F5: Notenspiegel | H5: 1 | I5: 1 | M5: =IF($Q$33=TRUE,(ROUND(($A$3*$F$3/100),1))-(8*$P$33),"") -> 12 | N5: 5.3
C6: =IF(B6<>"",VLOOKUP(D6,$H$5:$I$20,2,1),"") ->  | D6: =IF(B6<>"",VLOOKUP(B6,$M$1:$N$45,2,1),"") ->  | E6: =IF(B6<>"",ROUND(VLOOKUP(B6,$M$1:$N$45,2,1),0),"") ->  | F6: Note | G6: Anzahl | H6: 1.4 | I6: 1- | M6: =IF($Q$33=TRUE,(ROUND(($A$3*$F$3/100),1))-(7*$P$33),"") -> 13 | N6: 5.2
C7: =IF(B7<>"",VLOOKUP(D7,$H$5:$I$20,2,1),"") ->  | D7: =IF(B7<>"",VLOOKUP(B7,$M$1:$N$45,2,1),"") ->  | E7: =IF(B7<>"",ROUND(VLOOKUP(B7,$M$1:$N$45,2,1),0),"") ->  | F7: 1 | G7: =COUNTIF($E$6:$E$46,F7) -> 0 | H7: 1.5 | I7: 2+ | M7: =IF($Q$33=TRUE,(ROUND(($A$3*$F$3/100),1))-(6*$P$33),"") -> 14 | N7: 5.1
F8: 2 | G8: =COUNTIF($E$6:$E$46,F8) -> 0 | H8: 1.6 | I8: 2 | M8: =IF($Q$33=TRUE,(ROUND(($A$3*$F$3/100),1))-(5*$P$33),"") -> 15 | N8: 5
F9: 3 | G9: 0 | H9: 2.4 | I9: 2- | M9: =IF($Q$33=TRUE,(ROUND(($A$3*$F$3/100),1))-(4*$P$33),"") -> 16 | N9: 4.9
F10: 4 | G10: 0 | H10: 2.5 | I10: 3+ | M10: =IF($Q$33=TRUE,(ROUND(($A$3*$F$3/100),1))-(3*$P$33),"") -> 17 | N10: 4.8
F11: 5 | G11: 0 | H11: 2.6 | I11: 3 | M11: =IF($Q$33=TRUE,(ROUND(($A$3*$F$3/100),1))-(2*$P$33),"") -> 18 | N11: 4.7
F12: 6 | G12: 0 | H12: 3.4 | I12: 3- | M12: =IF($Q$33=TRUE,(ROUND(($A$3*$F$3/100),1))-(1*$P$33),"") -> 19 | N12: 4.6
F13: ø | G13: =IFERROR(ROUND(SUMPRODUCT(F7:F12,G7:G12)/COUNT(E6:E46),2),"") ->  | H13: 3.5 | I13: 4+ | K13: 5 | M13: =ROUND(($A$3*$F$3/100),1) -> 20 | N13: 4.5 | P13: =ROUND((((A3*D3/100)-(A3*E3/100))/10),1) -> 0.6 | Q13: =IF(P13>=0,TRUE,FALSE) -> TRUE
H14: 3.6 | I14: 4 | M14: =IF($Q$23=TRUE,(ROUND(($A$3*$E$3/100),1))-(9*$P$23),"") -> 20.4 | N14: 4.4
H15: 4.4 | I15: 4- | M15: =IF($Q$23=TRUE,(ROUND(($A$3*$E$3/100),1))-(8*$P$23),"") -> 21.2 | N15: 4.3
H16: 4.5 | I16: 5+ | M16: =IF($Q$23=TRUE,(ROUND(($A$3*$E$3/100),1))-(7*$P$23),"") -> 22 | N16: 4.2
H17: 4.6 | I17: 5 | M17: =IF($Q$23=TRUE,(ROUND(($A$3*$E$3/100),1))-(6*$P$23),"") -> 22.8 | N17: 4.1
H18: 5.4 | I18: 5- | M18: =IF($Q$23=TRUE,(ROUND(($A$3*$E$3/100),1))-(5*$P$23),"") -> 23.6 | N18: 4
H19: 5.5 | I19: 6+ | M19: =IF($Q$23=TRUE,(ROUND(($A$3*$E$3/100),1))-(4*$P$23),"") -> 24.4 | N19: 3.9
H20: 5.6 | I20: 6 | M20: =IF($Q$23=TRUE,(ROUND(($A$3*$E$3/100),1))-(3*$P$23),"") -> 25.2 | N20: 3.8
M21: =IF($Q$23=TRUE,(ROUND(($A$3*$E$3/100),1))-(2*$P$23),"") -> 26 | N21: 3.7
M22: =IF($Q$23=TRUE,(ROUND(($A$3*$E$3/100),1))-(1*$P$23),"") -> 26.8 | N22: 3.6
K23: 4 | M23: =ROUND(($A$3*$E$3/100),1) -> 27.6 | N23: 3.5 | P23: =ROUND((((A3*E3/100)-(A3*F3/100))/10),1) -> 0.8 | Q23: =IF(P23>=0,TRUE,FALSE) -> TRUE
M24: =IF($Q$13=TRUE,(ROUND(($A$3*$D$3/100),1))-(9*$P$13),"") -> 28.6 | N24: 3.4
M25: =IF($Q$13=TRUE,(ROUND(($A$3*$D$3/100),1))-(8*$P$13),"") -> 29.2 | N25: 3.3
M26: =IF($Q$13=TRUE,(ROUND(($A$3*$D$3/100),1))-(7*$P$13),"") -> 29.8 | N26: 3.2
M27: =IF($Q$13=TRUE,(ROUND(($A$3*$D$3/100),1))-(6*$P$13),"") -> 30.4 | N27: 3.1
M28: =IF($Q$13=TRUE,(ROUND(($A$3*$D$3/100),1))-(5*$P$13),"") -> 31 | N28: 3
M29: =IF($Q$13=TRUE,(ROUND(($A$3*$D$3/100),1))-(4*$P$13),"") -> 31.6 | N29: 2.9
M30: =IF($Q$13=TRUE,(ROUND(($A$3*$D$3/100),1))-(2*$P$13),"") -> 32.8 | N30: 2.7
M31: =IF($Q$13=TRUE,(ROUND(($A$3*$D$3/100),1))-(2*$P$13),"") -> 32.8 | N31: 2.8
M32: =IF($Q$13=TRUE,(ROUND(($A$3*$D$3/100),1))-(1*$P$13),"") -> 33.4 | N32: 2.6
K33: 3 | M33: =ROUND(($A$3*$D$3/100),1) -> 34 | N33: 2.5 | P33: =ROUND((((A3*F3/100)-(A3*G3/100))/10),1) -> 1 | Q33: =IF(P33>=0,TRUE,FALSE) -> TRUE
M34: =IF($Q$3=TRUE,(ROUND(($A$3*$C$3/100),1))-(9*$P$3),"") -> 34.7 | N34: 2.4
M35: =IF($Q$3=TRUE,(ROUND(($A$3*$C$3/100),1))-(8*$P$3),"") -> 35.2 | N35: 2.3
M36: =IF($Q$3=TRUE,(ROUND(($A$3*$C$3/100),1))-(7*$P$3),"") -> 35.7 | N36: 2.2
M37: =IF($Q$3=TRUE,(ROUND(($A$3*$C$3/100),1))-(6*$P$3),"") -> 36.2 | N37: 2.1
M38: =IF($Q$3=TRUE,(ROUND(($A$3*$C$3/100),1))-(5*$P$3),"") -> 36.7 | N38: 2
M39: =IF($Q$3=TRUE,(ROUND(($A$3*$C$3/100),1))-(4*$P$3),"") -> 37.2 | N39: 1.9
M40: =IF($Q$3=TRUE,(ROUND(($A$3*$C$3/100),1))-(3*$P$3),"") -> 37.7 | N40: 1.8
M41: =IF($Q$3=TRUE,(ROUND(($A$3*$C$3/100),1))-(2*$P$3),"") -> 38.2 | N41: 1.7
M42: =IF($Q$3=TRUE,(ROUND(($A$3*$C$3/100),1))-(1*$P$3),"") -> 38.7 | N42: 1.6
K43: 2 | M43: =ROUND(($A$3*$C$3/100),1) -> 39.2 | N43: 1.5 | P43: =ROUND((((A3*G3/100)-(0*G3/100))/10),1) -> 1 | Q43: =IF(P43>=0,TRUE,FALSE) -> TRUE
M44: =ROUND(($A$3*($C$3+1)/100)/5,1)*5 -> 39.5 | N44: 1.4
E45: =IF(B45<>"",ROUND(VLOOKUP(B45,$M$1:$N$45,2,1),0),"") ->  | K45: 1 | M45: =$A$3 -> 40 | N45: 1

Sheet Arbeit 2
A1: Settings | C1: Überschrift und Datum eingeben | M1: 0 | N1: 5.7 | Q1: =IF((A3-(A3*C3/100))>=0,TRUE,FALSE) -> TRUE
A2: Gesamtpunktzahl | C2: 1 bis ...% | D2: 2 bis ...% | E2: 3 bis ...% | F2: 4 bis ...% | G2: 5 bis ...% | M2: =IF($Q$43=TRUE,(ROUND(($A$3*$G$3/100),1))-(1*$P$43),"") -> 7.1 | N2: 5.6
A3: 33 | C3: 98 | D3: 85 | E3: 69 | F3: 50 | G3: 24 | K3: 6 | M3: =ROUND(($A$3*$G$3/100),1) -> 7.9 | N3: 5.5 | P3: =ROUND((((A3*C3/100)-(A3*D3/100))/10),1) -> 0.4 | Q3: =IF(P3>=0,TRUE,FALSE) -> TRUE | R3: =IF(B6<>"",VLOOKUP(B6,M1:N45,2,1),"") -> 
M4: =IF($Q$33=TRUE,(ROUND(($A$3*$F$3/100),1))-(9*$P$33),"") -> 8.4 | N4: 5.4
A5: Name | B5: Punkte | C5: Note | F5: Notenspiegel | H5: 1 | I5: 1 | M5: =IF($Q$33=TRUE,(ROUND(($A$3*$F$3/100),1))-(8*$P$33),"") -> 9.3 | N5: 5.3
A6: =IF('Arbeit 1'!A6<>"",'Arbeit 1'!A6,"") ->  | C6: =IF(B6<>"",VLOOKUP(D6,$H$5:$I$20,2,1),"") ->  | D6: =IF(B6<>"",VLOOKUP(B6,$M$1:$N$45,2,1),"") ->  | E6: =IF(B6<>"",ROUND(VLOOKUP(B6,$M$1:$N$45,2,1),0),"") ->  | F6: Note | G6: Anzahl | H6: 1.4 | I6: 1- | M6: =IF($Q$33=TRUE,(ROUND(($A$3*$F$3/100),1))-(7*$P$33),"") -> 10.2 | N6: 5.2
A7: =IF('Arbeit 1'!A7<>"",'Arbeit 1'!A7,"") ->  | C7: =IF(B7<>"",VLOOKUP(D7,$H$5:$I$20,2,1),"") ->  | D7: =IF(B7<>"",VLOOKUP(B7,$M$1:$N$45,2,1),"") ->  | E7: =IF(B7<>"",ROUND(VLOOKUP(B7,$M$1:$N$45,2,1),0),"") ->  | F7: 1 | G7: =COUNTIF($E$6:$E$46,F7) -> 0 | H7: 1.5 | I7: 2+ | M7: =IF($Q$33=TRUE,(ROUND(($A$3*$F$3/100),1))-(6*$P$33),"") -> 11.1 | N7: 5.1
A8: =IF('Arbeit 1'!A8<>"",'Arbeit 1'!A8,"") ->  | F8: 2 | G8: =COUNTIF($E$6:$E$46,F8) -> 0 | H8: 1.6 | I8: 2 | M8: =IF($Q$33=TRUE,(ROUND(($A$3*$F$3/100),1))-(5*$P$33),"") -> 12 | N8: 5
A9: =IF('Arbeit 1'!A9<>"",'Arbeit 1'!A9,"") ->  | F9: 3 | G9: 0 | H9: 2.4 | I9: 2- | M9: =IF($Q$33=TRUE,(ROUND(($A$3*$F$3/100),1))-(4*$P$33),"") -> 12.9 | N9: 4.9
A10: =IF('Arbeit 1'!A10<>"",'Arbeit 1'!A10,"") ->  | F10: 4 | G10: 0 | H10: 2.5 | I10: 3+ | M10: =IF($Q$33=TRUE,(ROUND(($A$3*$F$3/100),1))-(3*$P$33),"") -> 13.8 | N10: 4.8
A11: =IF('Arbeit 1'!A11<>"",'Arbeit 1'!A11,"") ->  | F11: 5 | G11: 0 | H11: 2.6 | I11: 3 | M11: =IF($Q$33=TRUE,(ROUND(($A$3*$F$3/100),1))-(2*$P$33),"") -> 14.7 | N11: 4.7
A12: =IF('Arbeit 1'!A12<>"",'Arbeit 1'!A12,"") ->  | F12: 6 | G12: 0 | H12: 3.4 | I12: 3- | M12: =IF($Q$33=TRUE,(ROUND(($A$3*$F$3/100),1))-(1*$P$33),"") -> 15.6 | N12: 4.6
A13: =IF('Arbeit 1'!A13<>"",'Arbeit 1'!A13,"") ->  | F13: ø | G13: =IFERROR(ROUND(SUMPRODUCT(F7:F12,G7:G12)/COUNT(E6:E46),2),"") ->  | H13: 3.5 | I13: 4+ | K13: 5 | M13: =ROUND(($A$3*$F$3/100),1) -> 16.5 | N13: 4.5 | P13: =ROUND((((A3*D3/100)-(A3*E3/100))/10),1) -> 0.5 | Q13: =IF(P13>=0,TRUE,FALSE) -> TRUE
A14: =IF('Arbeit 1'!A14<>"",'Arbeit 1'!A14,"") ->  | H14: 3.6 | I14: 4 | M14: =IF($Q$23=TRUE,(ROUND(($A$3*$E$3/100),1))-(9*$P$23),"") -> 17.4 | N14: 4.4
A15: =IF('Arbeit 1'!A15<>"",'Arbeit 1'!A15,"") ->  | H15: 4.4 | I15: 4- | M15: =IF($Q$23=TRUE,(ROUND(($A$3*$E$3/100),1))-(8*$P$23),"") -> 18 | N15: 4.3
A16: =IF('Arbeit 1'!A16<>"",'Arbeit 1'!A16,"") ->  | H16: 4.5 | I16: 5+ | M16: =IF($Q$23=TRUE,(ROUND(($A$3*$E$3/100),1))-(7*$P$23),"") -> 18.6 | N16: 4.2
A17: =IF('Arbeit 1'!A17<>"",'Arbeit 1'!A17,"") ->  | H17: 4.6 | I17: 5 | M17: =IF($Q$23=TRUE,(ROUND(($A$3*$E$3/100),1))-(6*$P$23),"") -> 19.2 | N17: 4.1
A18: =IF('Arbeit 1'!A18<>"",'Arbeit 1'!A18,"") ->  | H18: 5.4 | I18: 5- | M18: =IF($Q$23=TRUE,(ROUND(($A$3*$E$3/100),1))-(5*$P$23),"") -> 19.8 | N18: 4
A19: =IF('Arbeit 1'!A19<>"",'Arbeit 1'!A19,"") ->  | H19: 5.5 | I19: 6+ | M19: =IF($Q$23=TRUE,(ROUND(($A$3*$E$3/100),1))-(4*$P$23),"") -> 20.4 | N19: 3.9
A20: =IF('Arbeit 1'!A20<>"",'Arbeit 1'!A20,"") ->  | H20: 5.6 | I20: 6 | M20: =IF($Q$23=TRUE,(ROUND(($A$3*$E$3/100),1))-(3*$P$23),"") -> 21 | N20: 3.8
A21: =IF('Arbeit 1'!A21<>"",'Arbeit 1'!A21,"") ->  | M21: =IF($Q$23=TRUE,(ROUND(($A$3*$E$3/100),1))-(2*$P$23),"") -> 21.6 | N21: 3.7
A22: =IF('Arbeit 1'!A22<>"",'Arbeit 1'!A22,"") ->  | M22: =IF($Q$23=TRUE,(ROUND(($A$3*$E$3/100),1))-(1*$P$23),"") -> 22.2 | N22: 3.6
A23: =IF('Arbeit 1'!A23<>"",'Arbeit 1'!A23,"") ->  | K23: 4 | M23: =ROUND(($A$3*$E$3/100),1) -> 22.8 | N23: 3.5 | P23: =ROUND((((A3*E3/100)-(A3*F3/100))/10),1) -> 0.6 | Q23: =IF(P23>=0,TRUE,FALSE) -> TRUE
A24: =IF('Arbeit 1'!A24<>"",'Arbeit 1'!A24,"") ->  | M24: =IF($Q$13=TRUE,(ROUND(($A$3*$D$3/100),1))-(9*$P$13),"") -> 23.6 | N24: 3.4
A25: =IF('Arbeit 1'!A25<>"",'Arbeit 1'!A25,"") ->  | M25: =IF($Q$13=TRUE,(ROUND(($A$3*$D$3/100),1))-(8*$P$13),"") -> 24.1 | N25: 3.3
A26: =IF('Arbeit 1'!A26<>"",'Arbeit 1'!A26,"") ->  | M26: =IF($Q$13=TRUE,(ROUND(($A$3*$D$3/100),1))-(7*$P$13),"") -> 24.6 | N26: 3.2
A27: =IF('Arbeit 1'!A27<>"",'Arbeit 1'!A27,"") ->  | M27: =IF($Q$13=TRUE,(ROUND(($A$3*$D$3/100),1))-(6*$P$13),"") -> 25.1 | N27: 3.1
A28: =IF('Arbeit 1'!A28<>"",'Arbeit 1'!A28,"") ->  | M28: =IF($Q$13=TRUE,(ROUND(($A$3*$D$3/100),1))-(5*$P$13),"") -> 25.6 | N28: 3
A29: =IF('Arbeit 1'!A29<>"",'Arbeit 1'!A29,"") ->  | M29: =IF($Q$13=TRUE,(ROUND(($A$3*$D$3/100),1))-(4*$P$13),"") -> 26.1 | N29: 2.9
A30: =IF('Arbeit 1'!A30<>"",'Arbeit 1'!A30,"") ->  | M30: =IF($Q$13=TRUE,(ROUND(($A$3*$D$3/100),1))-(2*$P$13),"") -> 27.1 | N30: 2.7
A31: =IF('Arbeit 1'!A31<>"",'Arbeit 1'!A31,"") ->  | M31: =IF($Q$13=TRUE,(ROUND(($A$3*$D$3/100),1))-(2*$P$13),"") -> 27.1 | N31: 2.8
A32: =IF('Arbeit 1'!A32<>"",'Arbeit 1'!A32,"") ->  | M32: =IF($Q$13=TRUE,(ROUND(($A$3*$D$3/100),1))-(1*$P$13),"") -> 27.6 | N32: 2.6
A33: =IF('Arbeit 1'!A33<>"",'Arbeit 1'!A33,"") ->  | K33: 3 | M33: =ROUND(($A$3*$D$3/100),1) -> 28.1 | N33: 2.5 | P33: =ROUND((((A3*F3/100)-(A3*G3/100))/10),1) -> 0.9 | Q33: =IF(P33>=0,TRUE,FALSE) -> TRUE
A34: =IF('Arbeit 1'!A34<>"",'Arbeit 1'!A34,"") ->  | M34: =IF($Q$3=TRUE,(ROUND(($A$3*$C$3/100),1))-(9*$P$3),"") -> 28.7 | N34: 2.4
A35: =IF('Arbeit 1'!A35<>"",'Arbeit 1'!A35,"") ->  | M35: =IF($Q$3=TRUE,(ROUND(($A$3*$C$3/100),1))-(8*$P$3),"") -> 29.1 | N35: 2.3
A36: =IF('Arbeit 1'!A36<>"",'Arbeit 1'!A36,"") ->  | M36: =IF($Q$3=TRUE,(ROUND(($A$3*$C$3/100),1))-(7*$P$3),"") -> 29.5 | N36: 2.2
A37: =IF('Arbeit 1'!A37<>"",'Arbeit 1'!A37,"") ->  | M37: =IF($Q$3=TRUE,(ROUND(($A$3*$C$3/100),1))-(6*$P$3),"") -> 29.9 | N37: 2.1
A38: =IF('Arbeit 1'!A38<>"",'Arbeit 1'!A38,"") ->  | M38: =IF($Q$3=TRUE,(ROUND(($A$3*$C$3/100),1))-(5*$P$3),"") -> 30.3 | N38: 2
A39: =IF('Arbeit 1'!A39<>"",'Arbeit 1'!A39,"") ->  | M39: =IF($Q$3=TRUE,(ROUND(($A$3*$C$3/100),1))-(4*$P$3),"") -> 30.7 | N39: 1.9
A40: =IF('Arbeit 1'!A40<>"",'Arbeit 1'!A40,"") ->  | M40: =IF($Q$3=TRUE,(ROUND(($A$3*$C$3/100),1))-(3*$P$3),"") -> 31.1 | N40: 1.8
A41: =IF('Arbeit 1'!A41<>"",'Arbeit 1'!A41,"") ->  | M41: =IF($Q$3=TRUE,(ROUND(($A$3*$C$3/100),1))-(2*$P$3),"") -> 31.5 | N41: 1.7
A42: =IF('Arbeit 1'!A42<>"",'Arbeit 1'!A42,"") ->  | M42: =IF($Q$3=TRUE,(ROUND(($A$3*$C$3/100),1))-(1*$P$3),"") -> 31.9 | N42: 1.6
A43: =IF('Arbeit 1'!A43<>"",'Arbeit 1'!A43,"") ->  | K43: 2 | M43: =ROUND(($A$3*$C$3/100),1) -> 32.3 | N43: 1.5 | P43: =ROUND((((A3*G3/100)-(0*G3/100))/10),1) -> 0.8 | Q43: =IF(P43>=0,TRUE,FALSE) -> TRUE
A44: =IF('Arbeit 1'!A44<>"",'Arbeit 1'!A44,"") ->  | M44: =ROUND(($A$3*($C$3+1)/100)/5,1)*5 -> 32.5 | N44: 1.4
A45: =IF('Arbeit 1'!A45<>"",'Arbeit 1'!A45,"") ->  | E45: =IF(B45<>"",ROUND(VLOOKUP(B45,$M$1:$N$45,2,1),0),"") ->  | K45: 1 | M45: =$A$3 -> 33 | N45: 1
A46: =IF('Arbeit 1'!A46<>"",'Arbeit 1'!A46,"") -> 

Sheet Arbeit 3
A1: Settings | C1: Überschrift und Datum eingeben | M1: 0 | N1: 5.7 | Q1: =IF((A3-(A3*C3/100))>=0,TRUE,FALSE) -> TRUE
A2: Gesamtpunktzahl | C2: 1 bis ...% | D2: 2 bis ...% | E2: 3 bis ...% | F2: 4 bis ...% | G2: 5 bis ...% | M2: =IF($Q$43=TRUE,(ROUND(($A$3*$G$3/100),1))-(1*$P$43),"") -> 11.9 | N2: 5.6
A3: 55 | C3: 98 | D3: 85 | E3: 69 | F3: 50 | G3: 24 | K3: 6 | M3: =ROUND(($A$3*$G$3/100),1) -> 13.2 | N3: 5.5 | P3: =ROUND((((A3*C3/100)-(A3*D3/100))/10),1) -> 0.7 | Q3: =IF(P3>=0,TRUE,FALSE) -> TRUE | R3: =IF(B6<>"",VLOOKUP(B6,M1:N45,2,1),"") -> 
M4: =IF($Q$33=TRUE,(ROUND(($A$3*$F$3/100),1))-(9*$P$33),"") -> 14.9 | N4: 5.4
A5: Name | B5: Punkte | C5: Note | F5: Notenspiegel | H5: 1 | I5: 1 | M5: =IF($Q$33=TRUE,(ROUND(($A$3*$F$3/100),1))-(8*$P$33),"") -> 16.3 | N5: 5.3
A6: =IF('Arbeit 1'!A6<>"",'Arbeit 1'!A6,"") ->  | C6: =IF(B6<>"",VLOOKUP(D6,$H$5:$I$20,2,1),"") ->  | D6: =IF(B6<>"",VLOOKUP(B6,$M$1:$N$45,2,1),"") ->  | E6: =IF(B6<>"",ROUND(VLOOKUP(B6,$M$1:$N$45,2,1),0),"") ->  | F6: Note | G6: Anzahl | H6: 1.4 | I6: 1- | M6: =IF($Q$33=TRUE,(ROUND(($A$3*$F$3/100),1))-(7*$P$33),"") -> 17.7 | N6: 5.2
A7: =IF('Arbeit 1'!A7<>"",'Arbeit 1'!A7,"") ->  | C7: =IF(B7<>"",VLOOKUP(D7,$H$5:$I$20,2,1),"") ->  | D7: =IF(B7<>"",VLOOKUP(B7,$M$1:$N$45,2,1),"") ->  | E7: =IF(B7<>"",ROUND(VLOOKUP(B7,$M$1:$N$45,2,1),0),"") ->  | F7: 1 | G7: =COUNTIF($E$6:$E$46,F7) -> 0 | H7: 1.5 | I7: 2+ | M7: =IF($Q$33=TRUE,(ROUND(($A$3*$F$3/100),1))-(6*$P$33),"") -> 19.1 | N7: 5.1
A8: =IF('Arbeit 1'!A8<>"",'Arbeit 1'!A8,"") ->  | F8: 2 | G8: =COUNTIF($E$6:$E$46,F8) -> 0 | H8: 1.6 | I8: 2 | M8: =IF($Q$33=TRUE,(ROUND(($A$3*$F$3/100),1))-(5*$P$33),"") -> 20.5 | N8: 5
A9: =IF('Arbeit 1'!A9<>"",'Arbeit 1'!A9,"") ->  | F9: 3 | G9: 0 | H9: 2.4 | I9: 2- | M9: =IF($Q$33=TRUE,(ROUND(($A$3*$F$3/100),1))-(4*$P$33),"") -> 21.9 | N9: 4.9
A10: =IF('Arbeit 1'!A10<>"",'Arbeit 1'!A10,"") ->  | F10: 4 | G10: 0 | H10: 2.5 | I10: 3+ | M10: =IF($Q$33=TRUE,(ROUND(($A$3*$F$3/100),1))-(3*$P$33),"") -> 23.3 | N10: 4.8
A11: =IF('Arbeit 1'!A11<>"",'Arbeit 1'!A11,"") ->  | F11: 5 | G11: 0 | H11: 2.6 | I11: 3 | M11: =IF($Q$33=TRUE,(ROUND(($A$3*$F$3/100),1))-(2*$P$33),"") -> 24.7 | N11: 4.7
A12: =IF('Arbeit 1'!A12<>"",'Arbeit 1'!A12,"") ->  | F12: 6 | G12: 0 | H12: 3.4 | I12: 3- | M12: =IF($Q$33=TRUE,(ROUND(($A$3*$F$3/100),1))-(1*$P$33),"") -> 26.1 | N12: 4.6
A13: =IF('Arbeit 1'!A13<>"",'Arbeit 1'!A13,"") ->  | F13: ø | G13: =IFERROR(ROUND(SUMPRODUCT(F7:F12,G7:G12)/COUNT(E6:E46),2),"") ->  | H13: 3.5 | I13: 4+ | K13: 5 | M13: =ROUND(($A$3*$F$3/100),1) -> 27.5 | N13: 4.5 | P13: =ROUND((((A3*D3/100)-(A3*E3/100))/10),1) -> 0.9 | Q13: =IF(P13>=0,TRUE,FALSE) -> TRUE
A14: =IF('Arbeit 1'!A14<>"",'Arbeit 1'!A14,"") ->  | H14: 3.6 | I14: 4 | M14: =IF($Q$23=TRUE,(ROUND(($A$3*$E$3/100),1))-(9*$P$23),"") -> 29 | N14: 4.4
A15: =IF('Arbeit 1'!A15<>"",'Arbeit 1'!A15,"") ->  | H15: 4.4 | I15: 4- | M15: =IF($Q$23=TRUE,(ROUND(($A$3*$E$3/100),1))-(8*$P$23),"") -> 30 | N15: 4.3
A16: =IF('Arbeit 1'!A16<>"",'Arbeit 1'!A16,"") ->  | H16: 4.5 | I16: 5+ | M16: =IF($Q$23=TRUE,(ROUND(($A$3*$E$3/100),1))-(7*$P$23),"") -> 31 | N16: 4.2
A17: =IF('Arbeit 1'!A17<>"",'Arbeit 1'!A17,"") ->  | H17: 4.6 | I17: 5 | M17: =IF($Q$23=TRUE,(ROUND(($A$3*$E$3/100),1))-(6*$P$23),"") -> 32 | N17: 4.1
A18: =IF('Arbeit 1'!A18<>"",'Arbeit 1'!A18,"") ->  | H18: 5.4 | I18: 5- | M18: =IF($Q$23=TRUE,(ROUND(($A$3*$E$3/100),1))-(5*$P$23),"") -> 33 | N18: 4
A19: =IF('Arbeit 1'!A19<>"",'Arbeit 1'!A19,"") ->  | H19: 5.5 | I19: 6+ | M19: =IF($Q$23=TRUE,(ROUND(($A$3*$E$3/100),1))-(4*$P$23),"") -> 34 | N19: 3.9
A20: =IF('Arbeit 1'!A20<>"",'Arbeit 1'!A20,"") ->  | H20: 5.6 | I20: 6 | M20: =IF($Q$23=TRUE,(ROUND(($A$3*$E$3/100),1))-(3*$P$23),"") -> 35 | N20: 3.8
A21: =IF('Arbeit 1'!A21<>"",'Arbeit 1'!A21,"") ->  | M21: =IF($Q$23=TRUE,(ROUND(($A$3*$E$3/100),1))-(2*$P$23),"") -> 36 | N21: 3.7
A22: =IF('Arbeit 1'!A22<>"",'Arbeit 1'!A22,"") ->  | M22: =IF($Q$23=TRUE,(ROUND(($A$3*$E$3/100),1))-(1*$P$23),"") -> 37 | N22: 3.6
A23: =IF('Arbeit 1'!A23<>"",'Arbeit 1'!A23,"") ->  | K23: 4 | M23: =ROUND(($A$3*$E$3/100),1) -> 38 | N23: 3.5 | P23: =ROUND((((A3*E3/100)-(A3*F3/100))/10),1) -> 1 | Q23: =IF(P23>=0,TRUE,FALSE) -> TRUE
A24: =IF('Arbeit 1'!A24<>"",'Arbeit 1'!A24,"") ->  | M24: =IF($Q$13=TRUE,(ROUND(($A$3*$D$3/100),1))-(9*$P$13),"") -> 38.7 | N24: 3.4
A25: =IF('Arbeit 1'!A25<>"",'Arbeit 1'!A25,"") ->  | M25: =IF($Q$13=TRUE,(ROUND(($A$3*$D$3/100),1))-(8*$P$13),"") -> 39.6 | N25: 3.3
A26: =IF('Arbeit 1'!A26<>"",'Arbeit 1'!A26,"") ->  | M26: =IF($Q$13=TRUE,(ROUND(($A$3*$D$3/100),1))-(7*$P$13),"") -> 40.5 | N26: 3.2
A27: =IF('Arbeit 1'!A27<>"",'Arbeit 1'!A27,"") ->  | M27: =IF($Q$13=TRUE,(ROUND(($A$3*$D$3/100),1))-(6*$P$13),"") -> 41.4 | N27: 3.1
A28: =IF('Arbeit 1'!A28<>"",'Arbeit 1'!A28,"") ->  | M28: =IF($Q$13=TRUE,(ROUND(($A$3*$D$3/100),1))-(5*$P$13),"") -> 42.3 | N28: 3
A29: =IF('Arbeit 1'!A29<>"",'Arbeit 1'!A29,"") ->  | M29: =IF($Q$13=TRUE,(ROUND(($A$3*$D$3/100),1))-(4*$P$13),"") -> 43.2 | N29: 2.9
A30: =IF('Arbeit 1'!A30<>"",'Arbeit 1'!A30,"") ->  | M30: =IF($Q$13=TRUE,(ROUND(($A$3*$D$3/100),1))-(2*$P$13),"") -> 45 | N30: 2.7
A31: =IF('Arbeit 1'!A31<>"",'Arbeit 1'!A31,"") ->  | M31: =IF($Q$13=TRUE,(ROUND(($A$3*$D$3/100),1))-(2*$P$13),"") -> 45 | N31: 2.8
A32: =IF('Arbeit 1'!A32<>"",'Arbeit 1'!A32,"") ->  | M32: =IF($Q$13=TRUE,(ROUND(($A$3*$D$3/100),1))-(1*$P$13),"") -> 45.9 | N32: 2.6
A33: =IF('Arbeit 1'!A33<>"",'Arbeit 1'!A33,"") ->  | K33: 3 | M33: =ROUND(($A$3*$D$3/100),1) -> 46.8 | N33: 2.5 | P33: =ROUND((((A3*F3/100)-(A3*G3/100))/10),1) -> 1.4 | Q33: =IF(P33>=0,TRUE,FALSE) -> TRUE
A34: =IF('Arbeit 1'!A34<>"",'Arbeit 1'!A34,"") ->  | M34: =IF($Q$3=TRUE,(ROUND(($A$3*$C$3/100),1))-(9*$P$3),"") -> 47.6 | N34: 2.4
A35: =IF('Arbeit 1'!A35<>"",'Arbeit 1'!A35,"") ->  | M35: =IF($Q$3=TRUE,(ROUND(($A$3*$C$3/100),1))-(8*$P$3),"") -> 48.3 | N35: 2.3
A36: =IF('Arbeit 1'!A36<>"",'Arbeit 1'!A36,"") ->  | M36: =IF($Q$3=TRUE,(ROUND(($A$3*$C$3/100),1))-(7*$P$3),"") -> 49 | N36: 2.2
A37: =IF('Arbeit 1'!A37<>"",'Arbeit 1'!A37,"") ->  | M37: =IF($Q$3=TRUE,(ROUND(($A$3*$C$3/100),1))-(6*$P$3),"") -> 49.7 | N37: 2.1
A38: =IF('Arbeit 1'!A38<>"",'Arbeit 1'!A38,"") ->  | M38: =IF($Q$3=TRUE,(ROUND(($A$3*$C$3/100),1))-(5*$P$3),"") -> 50.4 | N38: 2
A39: =IF('Arbeit 1'!A39<>"",'Arbeit 1'!A39,"") ->  | M39: =IF($Q$3=TRUE,(ROUND(($A$3*$C$3/100),1))-(4*$P$3),"") -> 51.1 | N39: 1.9
A40: =IF('Arbeit 1'!A40<>"",'Arbeit 1'!A40,"") ->  | M40: =IF($Q$3=TRUE,(ROUND(($A$3*$C$3/100),1))-(3*$P$3),"") -> 51.8 | N40: 1.8
A41: =IF('Arbeit 1'!A41<>"",'Arbeit 1'!A41,"") ->  | M41: =IF($Q$3=TRUE,(ROUND(($A$3*$C$3/100),1))-(2*$P$3),"") -> 52.5 | N41: 1.7
A42: =IF('Arbeit 1'!A42<>"",'Arbeit 1'!A42,"") ->  | M42: =IF($Q$3=TRUE,(ROUND(($A$3*$C$3/100),1))-(1*$P$3),"") -> 53.2 | N42: 1.6
A43: =IF('Arbeit 1'!A43<>"",'Arbeit 1'!A43,"") ->  | K43: 2 | M43: =ROUND(($A$3*$C$3/100),1) -> 53.9 | N43: 1.5 | P43: =ROUND((((A3*G3/100)-(0*G3/100))/10),1) -> 1.3 | Q43: =IF(P43>=0,TRUE,FALSE) -> TRUE
A44: =IF('Arbeit 1'!A44<>"",'Arbeit 1'!A44,"") ->  | M44: =ROUND(($A$3*($C$3+1)/100)/5,1)*5 -> 54.5 | N44: 1.4
A45: =IF('Arbeit 1'!A45<>"",'Arbeit 1'!A45,"") ->  | E45: =IF(B45<>"",ROUND(VLOOKUP(B45,$M$1:$N$45,2,1),0),"") ->  | K45: 1 | M45: =$A$3 -> 55 | N45: 1
A46: =IF('Arbeit 1'!A46<>"",'Arbeit 1'!A46,"") -> 

Sheet Arbeit 4
A1: Settings | C1: Überschrift und Datum eingeben | M1: 0 | N1: 5.7 | Q1: =IF((A3-(A3*C3/100))>=0,TRUE,FALSE) -> TRUE
A2: Gesamtpunktzahl | C2: 1 bis ...% | D2: 2 bis ...% | E2: 3 bis ...% | F2: 4 bis ...% | G2: 5 bis ...% | M2: =IF($Q$43=TRUE,(ROUND(($A$3*$G$3/100),1))-(1*$P$43),"") -> 7.1 | N2: 5.6
A3: 33 | C3: 98 | D3: 85 | E3: 69 | F3: 50 | G3: 24 | K3: 6 | M3: =ROUND(($A$3*$G$3/100),1) -> 7.9 | N3: 5.5 | P3: =ROUND((((A3*C3/100)-(A3*D3/100))/10),1) -> 0.4 | Q3: =IF(P3>=0,TRUE,FALSE) -> TRUE | R3: =IF(B6<>"",VLOOKUP(B6,M1:N45,2,1),"") -> 
M4: =IF($Q$33=TRUE,(ROUND(($A$3*$F$3/100),1))-(9*$P$33),"") -> 8.4 | N4: 5.4
A5: Name | B5: Punkte | C5: Note | F5: Notenspiegel | H5: 1 | I5: 1 | M5: =IF($Q$33=TRUE,(ROUND(($A$3*$F$3/100),1))-(8*$P$33),"") -> 9.3 | N5: 5.3
A6: =IF('Arbeit 1'!A6<>"",'Arbeit 1'!A6,"") ->  | C6: =IF(B6<>"",VLOOKUP(D6,$H$5:$I$20,2,1),"") ->  | D6: =IF(B6<>"",VLOOKUP(B6,$M$1:$N$45,2,1),"") ->  | E6: =IF(B6<>"",ROUND(VLOOKUP(B6,$M$1:$N$45,2,1),0),"") ->  | F6: Note | G6: Anzahl | H6: 1.4 | I6: 1- | M6: =IF($Q$33=TRUE,(ROUND(($A$3*$F$3/100),1))-(7*$P$33),"") -> 10.2 | N6: 5.2
A7: =IF('Arbeit 1'!A7<>"",'Arbeit 1'!A7,"") ->  | C7: =IF(B7<>"",VLOOKUP(D7,$H$5:$I$20,2,1),"") ->  | D7: =IF(B7<>"",VLOOKUP(B7,$M$1:$N$45,2,1),"") ->  | E7: =IF(B7<>"",ROUND(VLOOKUP(B7,$M$1:$N$45,2,1),0),"") ->  | F7: 1 | G7: =COUNTIF($E$6:$E$46,F7) -> 0 | H7: 1.5 | I7: 2+ | M7: =IF($Q$33=TRUE,(ROUND(($A$3*$F$3/100),1))-(6*$P$33),"") -> 11.1 | N7: 5.1
A8: =IF('Arbeit 1'!A8<>"",'Arbeit 1'!A8,"") ->  | F8: 2 | G8: =COUNTIF($E$6:$E$46,F8) -> 0 | H8: 1.6 | I8: 2 | M8: =IF($Q$33=TRUE,(ROUND(($A$3*$F$3/100),1))-(5*$P$33),"") -> 12 | N8: 5
A9: =IF('Arbeit 1'!A9<>"",'Arbeit 1'!A9,"") ->  | F9: 3 | G9: 0 | H9: 2.4 | I9: 2- | M9: =IF($Q$33=TRUE,(ROUND(($A$3*$F$3/100),1))-(4*$P$33),"") -> 12.9 | N9: 4.9
A10: =IF('Arbeit 1'!A10<>"",'Arbeit 1'!A10,"") ->  | F10: 4 | G10: 0 | H10: 2.5 | I10: 3+ | M10: =IF($Q$33=TRUE,(ROUND(($A$3*$F$3/100),1))-(3*$P$33),"") -> 13.8 | N10: 4.8
A11: =IF('Arbeit 1'!A11<>"",'Arbeit 1'!A11,"") ->  | F11: 5 | G11: 0 | H11: 2.6 | I11: 3 | M11: =IF($Q$33=TRUE,(ROUND(($A$3*$F$3/100),1))-(2*$P$33),"") -> 14.7 | N11: 4.7
A12: =IF('Arbeit 1'!A12<>"",'Arbeit 1'!A12,"") ->  | F12: 6 | G12: 0 | H12: 3.4 | I12: 3- | M12: =IF($Q$33=TRUE,(ROUND(($A$3*$F$3/100),1))-(1*$P$33),"") -> 15.6 | N12: 4.6
A13: =IF('Arbeit 1'!A13<>"",'Arbeit 1'!A13,"") ->  | F13: ø | G13: =IFERROR(ROUND(SUMPRODUCT(F7:F12,G7:G12)/COUNT(E6:E46),2),"") ->  | H13: 3.5 | I13: 4+ | K13: 5 | M13: =ROUND(($A$3*$F$3/100),1) -> 16.5 | N13: 4.5 | P13: =ROUND((((A3*D3/100)-(A3*E3/100))/10),1) -> 0.5 | Q13: =IF(P13>=0,TRUE,FALSE) -> TRUE
A14: =IF('Arbeit 1'!A14<>"",'Arbeit 1'!A14,"") ->  | H14: 3.6 | I14: 4 | M14: =IF($Q$23=TRUE,(ROUND(($A$3*$E$3/100),1))-(9*$P$23),"") -> 17.4 | N14: 4.4
A15: =IF('Arbeit 1'!A15<>"",'Arbeit 1'!A15,"") ->  | H15: 4.4 | I15: 4- | M15: =IF($Q$23=TRUE,(ROUND(($A$3*$E$3/100),1))-(8*$P$23),"") -> 18 | N15: 4.3
A16: =IF('Arbeit 1'!A16<>"",'Arbeit 1'!A16,"") ->  | H16: 4.5 | I16: 5+ | M16: =IF($Q$23=TRUE,(ROUND(($A$3*$E$3/100),1))-(7*$P$23),"") -> 18.6 | N16: 4.2
A17: =IF('Arbeit 1'!A17<>"",'Arbeit 1'!A17,"") ->  | H17: 4.6 | I17: 5 | M17: =IF($Q$23=TRUE,(ROUND(($A$3*$E$3/100),1))-(6*$P$23),"") -> 19.2 | N17: 4.1
A18: =IF('Arbeit 1'!A18<>"",'Arbeit 1'!A18,"") ->  | H18: 5.4 | I18: 5- | M18: =IF($Q$23=TRUE,(ROUND(($A$3*$E$3/100),1))-(5*$P$23),"") -> 19.8 | N18: 4
A19: =IF('Arbeit 1'!A19<>"",'Arbeit 1'!A19,"") ->  | H19: 5.5 | I19: 6+ | M19: =IF($Q$23=TRUE,(ROUND(($A$3*$E$3/100),1))-(4*$P$23),"") -> 20.4 | N19: 3.9
A20: =IF('Arbeit 1'!A20<>"",'Arbeit 1'!A20,"") ->  | H20: 5.6 | I20: 6 | M20: =IF($Q$23=TRUE,(ROUND(($A$3*$E$3/100),1))-(3*$P$23),"") -> 21 | N20: 3.8
A21: =IF('Arbeit 1'!A21<>"",'Arbeit 1'!A21,"") ->  | M21: =IF($Q$23=TRUE,(ROUND(($A$3*$E$3/100),1))-(2*$P$23),"") -> 21.6 | N21: 3.7
A22: =IF('Arbeit 1'!A22<>"",'Arbeit 1'!A22,"") ->  | M22: =IF($Q$23=TRUE,(ROUND(($A$3*$E$3/100),1))-(1*$P$23),"") -> 22.2 | N22: 3.6
A23: =IF('Arbeit 1'!A23<>"",'Arbeit 1'!A23,"") ->  | K23: 4 | M23: =ROUND(($A$3*$E$3/100),1) -> 22.8 | N23: 3.5 | P23: =ROUND((((A3*E3/100)-(A3*F3/100))/10),1) -> 0.6 | Q23: =IF(P23>=0,TRUE,FALSE) -> TRUE
A24: =IF('Arbeit 1'!A24<>"",'Arbeit 1'!A24,"") ->  | M24: =IF($Q$13=TRUE,(ROUND(($A$3*$D$3/100),1))-(9*$P$13),"") -> 23.6 | N24: 3.4
A25: =IF('Arbeit 1'!A25<>"",'Arbeit 1'!A25,"") ->  | M25: =IF($Q$13=TRUE,(ROUND(($A$3*$D$3/100),1))-(8*$P$13),"") -> 24.1 | N25: 3.3
A26: =IF('Arbeit 1'!A26<>"",'Arbeit 1'!A26,"") ->  | M26: =IF($Q$13=TRUE,(ROUND(($A$3*$D$3/100),1))-(7*$P$13),"") -> 24.6 | N26: 3.2
A27: =IF('Arbeit 1'!A27<>"",'Arbeit 1'!A27,"") ->  | M27: =IF($Q$13=TRUE,(ROUND(($A$3*$D$3/100),1))-(6*$P$13),"") -> 25.1 | N27: 3.1
A28: =IF('Arbeit 1'!A28<>"",'Arbeit 1'!A28,"") ->  | M28: =IF($Q$13=TRUE,(ROUND(($A$3*$D$3/100),1))-(5*$P$13),"") -> 25.6 | N28: 3
A29: =IF('Arbeit 1'!A29<>"",'Arbeit 1'!A29,"") ->  | M29: =IF($Q$13=TRUE,(ROUND(($A$3*$D$3/100),1))-(4*$P$13),"") -> 26.1 | N29: 2.9
A30: =IF('Arbeit 1'!A30<>"",'Arbeit 1'!A30,"") ->  | M30: =IF($Q$13=TRUE,(ROUND(($A$3*$D$3/100),1))-(2*$P$13),"") -> 27.1 | N30: 2.7
A31: =IF('Arbeit 1'!A31<>"",'Arbeit 1'!A31,"") ->  | M31: =IF($Q$13=TRUE,(ROUND(($A$3*$D$3/100),1))-(2*$P$13),"") -> 27.1 | N31: 2.8
A32: =IF('Arbeit 1'!A32<>"",'Arbeit 1'!A32,"") ->  | M32: =IF($Q$13=TRUE,(ROUND(($A$3*$D$3/100),1))-(1*$P$13),"") -> 27.6 | N32: 2.6
A33: =IF('Arbeit 1'!A33<>"",'Arbeit 1'!A33,"") ->  | K33: 3 | M33: =ROUND(($A$3*$D$3/100),1) -> 28.1 | N33: 2.5 | P33: =ROUND((((A3*F3/100)-(A3*G3/100))/10),1) -> 0.9 | Q33: =IF(P33>=0,TRUE,FALSE) -> TRUE
A34: =IF('Arbeit 1'!A34<>"",'Arbeit 1'!A34,"") ->  | M34: =IF($Q$3=TRUE,(ROUND(($A$3*$C$3/100),1))-(9*$P$3),"") -> 28.7 | N34: 2.4
A35: =IF('Arbeit 1'!A35<>"",'Arbeit 1'!A35,"") ->  | M35: =IF($Q$3=TRUE,(ROUND(($A$3*$C$3/100),1))-(8*$P$3),"") -> 29.1 | N35: 2.3
A36: =IF('Arbeit 1'!A36<>"",'Arbeit 1'!A36,"") ->  | M36: =IF($Q$3=TRUE,(ROUND(($A$3*$C$3/100),1))-(7*$P$3),"") -> 29.5 | N36: 2.2
A37: =IF('Arbeit 1'!A37<>"",'Arbeit 1'!A37,"") ->  | M37: =IF($Q$3=TRUE,(ROUND(($A$3*$C$3/100),1))-(6*$P$3),"") -> 29.9 | N37: 2.1
A38: =IF('Arbeit 1'!A38<>"",'Arbeit 1'!A38,"") ->  | M38: =IF($Q$3=TRUE,(ROUND(($A$3*$C$3/100),1))-(5*$P$3),"") -> 30.3 | N38: 2
A39: =IF('Arbeit 1'!A39<>"",'Arbeit 1'!A39,"") ->  | M39: =IF($Q$3=TRUE,(ROUND(($A$3*$C$3/100),1))-(4*$P$3),"") -> 30.7 | N39: 1.9
A40: =IF('Arbeit 1'!A40<>"",'Arbeit 1'!A40,"") ->  | M40: =IF($Q$3=TRUE,(ROUND(($A$3*$C$3/100),1))-(3*$P$3),"") -> 31.1 | N40: 1.8
A41: =IF('Arbeit 1'!A41<>"",'Arbeit 1'!A41,"") ->  | M41: =IF($Q$3=TRUE,(ROUND(($A$3*$C$3/100),1))-(2*$P$3),"") -> 31.5 | N41: 1.7
A42: =IF('Arbeit 1'!A42<>"",'Arbeit 1'!A42,"") ->  | M42: =IF($Q$3=TRUE,(ROUND(($A$3*$C$3/100),1))-(1*$P$3),"") -> 31.9 | N42: 1.6
A43: =IF('Arbeit 1'!A43<>"",'Arbeit 1'!A43,"") ->  | K43: 2 | M43: =ROUND(($A$3*$C$3/100),1) -> 32.3 | N43: 1.5 | P43: =ROUND((((A3*G3/100)-(0*G3/100))/10),1) -> 0.8 | Q43: =IF(P43>=0,TRUE,FALSE) -> TRUE
A44: =IF('Arbeit 1'!A44<>"",'Arbeit 1'!A44,"") ->  | M44: =ROUND(($A$3*($C$3+1)/100)/5,1)*5 -> 32.5 | N44: 1.4
A45: =IF('Arbeit 1'!A45<>"",'Arbeit 1'!A45,"") ->  | E45: =IF(B45<>"",ROUND(VLOOKUP(B45,$M$1:$N$45,2,1),0),"") ->  | K45: 1 | M45: =$A$3 -> 33 | N45: 1
A46: =IF('Arbeit 1'!A46<>"",'Arbeit 1'!A46,"") -> 

Sheet Auswertung
A1: Auswertung
A3: Name | B3: Arbeit 1 | C3: Arbeit 2 | D3: Arbeit 3 | E3: Arbeit 4 | F3: ø | G3: Note
A4: =IF('Arbeit 1'!A6<>"",'Arbeit 1'!A6,"") ->  | B4: =IF('Arbeit 1'!D6<>"",('Arbeit 1'!D6)*1,"") ->  | C4: =IF('Arbeit 2'!D6<>"",('Arbeit 2'!D6)*1,"") ->  | D4: =IF('Arbeit 3'!D6<>"",('Arbeit 3'!D6)*1,"") ->  | E4: =IF('Arbeit 4'!D6<>"",('Arbeit 4'!D6)*1,"") ->  | F4: =IFERROR(ROUND(AVERAGE(B4:E4),1),"") ->  | G4: =IF(F4<>"",VLOOKUP(F4,$J$5:$K$20,2,1),"") -> 
A5: =IF('Arbeit 1'!A7<>"",'Arbeit 1'!A7,"") ->  | B5: =IF('Arbeit 1'!D7<>"",('Arbeit 1'!D7)*1,"") ->  | C5: =IF('Arbeit 2'!D7<>"",('Arbeit 2'!D7)*1,"") ->  | D5: =IF('Arbeit 3'!D7<>"",('Arbeit 3'!D7)*1,"") ->  | E5: =IF('Arbeit 4'!D7<>"",('Arbeit 4'!D7)*1,"") ->  | G5: =IF(F5<>"",VLOOKUP(F5,$J$5:$K$20,2,1),"") ->  | J5: 1 | K5: 1
A6: =IF('Arbeit 1'!A8<>"",'Arbeit 1'!A8,"") ->  | B6: =IF('Arbeit 1'!D8<>"",('Arbeit 1'!D8)*1,"") ->  | C6: =IF('Arbeit 2'!D8<>"",('Arbeit 2'!D8)*1,"") ->  | D6: =IF('Arbeit 3'!D8<>"",('Arbeit 3'!D8)*1,"") ->  | E6: =IF('Arbeit 4'!D8<>"",('Arbeit 4'!D8)*1,"") ->  | J6: 1.4 | K6: 1-
A7: =IF('Arbeit 1'!A9<>"",'Arbeit 1'!A9,"") ->  | B7: =IF('Arbeit 1'!D9<>"",('Arbeit 1'!D9)*1,"") ->  | C7: =IF('Arbeit 2'!D9<>"",('Arbeit 2'!D9)*1,"") ->  | D7: =IF('Arbeit 3'!D9<>"",('Arbeit 3'!D9)*1,"") ->  | E7: =IF('Arbeit 4'!D9<>"",('Arbeit 4'!D9)*1,"") ->  | J7: 1.5 | K7: 2+
A8: =IF('Arbeit 1'!A10<>"",'Arbeit 1'!A10,"") ->  | B8: =IF('Arbeit 1'!D10<>"",('Arbeit 1'!D10)*1,"") ->  | C8: =IF('Arbeit 2'!D10<>"",('Arbeit 2'!D10)*1,"") ->  | D8: =IF('Arbeit 3'!D10<>"",('Arbeit 3'!D10)*1,"") ->  | E8: =IF('Arbeit 4'!D10<>"",('Arbeit 4'!D10)*1,"") ->  | J8: 1.6 | K8: 2
A9: =IF('Arbeit 1'!A11<>"",'Arbeit 1'!A11,"") ->  | B9: =IF('Arbeit 1'!D11<>"",('Arbeit 1'!D11)*1,"") ->  | C9: =IF('Arbeit 2'!D11<>"",('Arbeit 2'!D11)*1,"") ->  | D9: =IF('Arbeit 3'!D11<>"",('Arbeit 3'!D11)*1,"") ->  | E9: =IF('Arbeit 4'!D11<>"",('Arbeit 4'!D11)*1,"") ->  | J9: 2.4 | K9: 2-
A10: =IF('Arbeit 1'!A12<>"",'Arbeit 1'!A12,"") ->  | B10: =IF('Arbeit 1'!D12<>"",('Arbeit 1'!D12)*1,"") ->  | C10: =IF('Arbeit 2'!D12<>"",('Arbeit 2'!D12)*1,"") ->  | D10: =IF('Arbeit 3'!D12<>"",('Arbeit 3'!D12)*1,"") ->  | E10: =IF('Arbeit 4'!D12<>"",('Arbeit 4'!D12)*1,"") ->  | J10: 2.5 | K10: 3+
A11: =IF('Arbeit 1'!A13<>"",'Arbeit 1'!A13,"") ->  | B11: =IF('Arbeit 1'!D13<>"",('Arbeit 1'!D13)*1,"") ->  | C11: =IF('Arbeit 2'!D13<>"",('Arbeit 2'!D13)*1,"") ->  | D11: =IF('Arbeit 3'!D13<>"",('Arbeit 3'!D13)*1,"") ->  | E11: =IF('Arbeit 4'!D13<>"",('Arbeit 4'!D13)*1,"") ->  | J11: 2.6 | K11: 3
A12: =IF('Arbeit 1'!A14<>"",'Arbeit 1'!A14,"") ->  | B12: =IF('Arbeit 1'!D14<>"",('Arbeit 1'!D14)*1,"") ->  | C12: =IF('Arbeit 2'!D14<>"",('Arbeit 2'!D14)*1,"") ->  | D12: =IF('Arbeit 3'!D14<>"",('Arbeit 3'!D14)*1,"") ->  | E12: =IF('Arbeit 4'!D14<>"",('Arbeit 4'!D14)*1,"") ->  | J12: 3.4 | K12: 3-
A13: =IF('Arbeit 1'!A15<>"",'Arbeit 1'!A15,"") ->  | B13: =IF('Arbeit 1'!D15<>"",('Arbeit 1'!D15)*1,"") ->  | C13: =IF('Arbeit 2'!D15<>"",('Arbeit 2'!D15)*1,"") ->  | D13: =IF('Arbeit 3'!D15<>"",('Arbeit 3'!D15)*1,"") ->  | E13: =IF('Arbeit 4'!D15<>"",('Arbeit 4'!D15)*1,"") ->  | J13: 3.5 | K13: 4+
A14: =IF('Arbeit 1'!A16<>"",'Arbeit 1'!A16,"") ->  | B14: =IF('Arbeit 1'!D16<>"",('Arbeit 1'!D16)*1,"") ->  | C14: =IF('Arbeit 2'!D16<>"",('Arbeit 2'!D16)*1,"") ->  | D14: =IF('Arbeit 3'!D16<>"",('Arbeit 3'!D16)*1,"") ->  | E14: =IF('Arbeit 4'!D16<>"",('Arbeit 4'!D16)*1,"") ->  | J14: 3.6 | K14: 4
A15: =IF('Arbeit 1'!A17<>"",'Arbeit 1'!A17,"") ->  | B15: =IF('Arbeit 1'!D17<>"",('Arbeit 1'!D17)*1,"") ->  | C15: =IF('Arbeit 2'!D17<>"",('Arbeit 2'!D17)*1,"") ->  | D15: =IF('Arbeit 3'!D17<>"",('Arbeit 3'!D17)*1,"") ->  | E15: =IF('Arbeit 4'!D17<>"",('Arbeit 4'!D17)*1,"") ->  | J15: 4.4 | K15: 4-
A16: =IF('Arbeit 1'!A18<>"",'Arbeit 1'!A18,"") ->  | B16: =IF('Arbeit 1'!D18<>"",('Arbeit 1'!D18)*1,"") ->  | C16: =IF('Arbeit 2'!D18<>"",('Arbeit 2'!D18)*1,"") ->  | D16: =IF('Arbeit 3'!D18<>"",('Arbeit 3'!D18)*1,"") ->  | E16: =IF('Arbeit 4'!D18<>"",('Arbeit 4'!D18)*1,"") ->  | J16: 4.5 | K16: 5+
A17: =IF('Arbeit 1'!A19<>"",'Arbeit 1'!A19,"") ->  | B17: =IF('Arbeit 1'!D19<>"",('Arbeit 1'!D19)*1,"") ->  | C17: =IF('Arbeit 2'!D19<>"",('Arbeit 2'!D19)*1,"") ->  | D17: =IF('Arbeit 3'!D19<>"",('Arbeit 3'!D19)*1,"") ->  | E17: =IF('Arbeit 4'!D19<>"",('Arbeit 4'!D19)*1,"") ->  | J17: 4.6 | K17: 5
A18: =IF('Arbeit 1'!A20<>"",'Arbeit 1'!A20,"") ->  | B18: =IF('Arbeit 1'!D20<>"",('Arbeit 1'!D20)*1,"") ->  | C18: =IF('Arbeit 2'!D20<>"",('Arbeit 2'!D20)*1,"") ->  | D18: =IF('Arbeit 3'!D20<>"",('Arbeit 3'!D20)*1,"") ->  | E18: =IF('Arbeit 4'!D20<>"",('Arbeit 4'!D20)*1,"") ->  | J18: 5.4 | K18: 5-
A19: =IF('Arbeit 1'!A21<>"",'Arbeit 1'!A21,"") ->  | B19: =IF('Arbeit 1'!D21<>"",('Arbeit 1'!D21)*1,"") ->  | C19: =IF('Arbeit 2'!D21<>"",('Arbeit 2'!D21)*1,"") ->  | D19: =IF('Arbeit 3'!D21<>"",('Arbeit 3'!D21)*1,"") ->  | E19: =IF('Arbeit 4'!D21<>"",('Arbeit 4'!D21)*1,"") ->  | J19: 5.5 | K19: 6+
A20: =IF('Arbeit 1'!A22<>"",'Arbeit 1'!A22,"") ->  | B20: =IF('Arbeit 1'!D22<>"",('Arbeit 1'!D22)*1,"") ->  | C20: =IF('Arbeit 2'!D22<>"",('Arbeit 2'!D22)*1,"") ->  | D20: =IF('Arbeit 3'!D22<>"",('Arbeit 3'!D22)*1,"") ->  | E20: =IF('Arbeit 4'!D22<>"",('Arbeit 4'!D22)*1,"") ->  | J20: 5.6 | K20: 6
A21: =IF('Arbeit 1'!A23<>"",'Arbeit 1'!A23,"") ->  | B21: =IF('Arbeit 1'!D23<>"",('Arbeit 1'!D23)*1,"") ->  | C21: =IF('Arbeit 2'!D23<>"",('Arbeit 2'!D23)*1,"") ->  | D21: =IF('Arbeit 3'!D23<>"",('Arbeit 3'!D23)*1,"") ->  | E21: =IF('Arbeit 4'!D23<>"",('Arbeit 4'!D23)*1,"") -> 
A22: =IF('Arbeit 1'!A24<>"",'Arbeit 1'!A24,"") ->  | B22: =IF('Arbeit 1'!D24<>"",('Arbeit 1'!D24)*1,"") ->  | C22: =IF('Arbeit 2'!D24<>"",('Arbeit 2'!D24)*1,"") ->  | D22: =IF('Arbeit 3'!D24<>"",('Arbeit 3'!D24)*1,"") ->  | E22: =IF('Arbeit 4'!D24<>"",('Arbeit 4'!D24)*1,"") -> 
A23: =IF('Arbeit 1'!A25<>"",'Arbeit 1'!A25,"") ->  | B23: =IF('Arbeit 1'!D25<>"",('Arbeit 1'!D25)*1,"") ->  | C23: =IF('Arbeit 2'!D25<>"",('Arbeit 2'!D25)*1,"") ->  | D23: =IF('Arbeit 3'!D25<>"",('Arbeit 3'!D25)*1,"") ->  | E23: =IF('Arbeit 4'!D25<>"",('Arbeit 4'!D25)*1,"") -> 
A24: =IF('Arbeit 1'!A26<>"",'Arbeit 1'!A26,"") ->  | B24: =IF('Arbeit 1'!D26<>"",('Arbeit 1'!D26)*1,"") ->  | C24: =IF('Arbeit 2'!D26<>"",('Arbeit 2'!D26)*1,"") ->  | D24: =IF('Arbeit 3'!D26<>"",('Arbeit 3'!D26)*1,"") ->  | E24: =IF('Arbeit 4'!D26<>"",('Arbeit 4'!D26)*1,"") -> 
A25: =IF('Arbeit 1'!A27<>"",'Arbeit 1'!A27,"") ->  | B25: =IF('Arbeit 1'!D27<>"",('Arbeit 1'!D27)*1,"") ->  | C25: =IF('Arbeit 2'!D27<>"",('Arbeit 2'!D27)*1,"") ->  | D25: =IF('Arbeit 3'!D27<>"",('Arbeit 3'!D27)*1,"") ->  | E25: =IF('Arbeit 4'!D27<>"",('Arbeit 4'!D27)*1,"") -> 
A26: =IF('Arbeit 1'!A28<>"",'Arbeit 1'!A28,"") ->  | B26: =IF('Arbeit 1'!D28<>"",('Arbeit 1'!D28)*1,"") ->  | C26: =IF('Arbeit 2'!D28<>"",('Arbeit 2'!D28)*1,"") ->  | D26: =IF('Arbeit 3'!D28<>"",('Arbeit 3'!D28)*1,"") ->  | E26: =IF('Arbeit 4'!D28<>"",('Arbeit 4'!D28)*1,"") -> 
A27: =IF('Arbeit 1'!A29<>"",'Arbeit 1'!A29,"") ->  | B27: =IF('Arbeit 1'!D29<>"",('Arbeit 1'!D29)*1,"") ->  | C27: =IF('Arbeit 2'!D29<>"",('Arbeit 2'!D29)*1,"") ->  | D27: =IF('Arbeit 3'!D29<>"",('Arbeit 3'!D29)*1,"") ->  | E27: =IF('Arbeit 4'!D29<>"",('Arbeit 4'!D29)*1,"") -> 
A28: =IF('Arbeit 1'!A30<>"",'Arbeit 1'!A30,"") ->  | B28: =IF('Arbeit 1'!D30<>"",('Arbeit 1'!D30)*1,"") ->  | C28: =IF('Arbeit 2'!D30<>"",('Arbeit 2'!D30)*1,"") ->  | D28: =IF('Arbeit 3'!D30<>"",('Arbeit 3'!D30)*1,"") ->  | E28: =IF('Arbeit 4'!D30<>"",('Arbeit 4'!D30)*1,"") -> 
A29: =IF('Arbeit 1'!A31<>"",'Arbeit 1'!A31,"") ->  | B29: =IF('Arbeit 1'!D31<>"",('Arbeit 1'!D31)*1,"") ->  | C29: =IF('Arbeit 2'!D31<>"",('Arbeit 2'!D31)*1,"") ->  | D29: =IF('Arbeit 3'!D31<>"",('Arbeit 3'!D31)*1,"") ->  | E29: =IF('Arbeit 4'!D31<>"",('Arbeit 4'!D31)*1,"") -> 
A30: =IF('Arbeit 1'!A32<>"",'Arbeit 1'!A32,"") ->  | B30: =IF('Arbeit 1'!D32<>"",('Arbeit 1'!D32)*1,"") ->  | C30: =IF('Arbeit 2'!D32<>"",('Arbeit 2'!D32)*1,"") ->  | D30: =IF('Arbeit 3'!D32<>"",('Arbeit 3'!D32)*1,"") ->  | E30: =IF('Arbeit 4'!D32<>"",('Arbeit 4'!D32)*1,"") -> 
A31: =IF('Arbeit 1'!A33<>"",'Arbeit 1'!A33,"") ->  | B31: =IF('Arbeit 1'!D33<>"",('Arbeit 1'!D33)*1,"") ->  | C31: =IF('Arbeit 2'!D33<>"",('Arbeit 2'!D33)*1,"") ->  | D31: =IF('Arbeit 3'!D33<>"",('Arbeit 3'!D33)*1,"") ->  | E31: =IF('Arbeit 4'!D33<>"",('Arbeit 4'!D33)*1,"") -> 
A32: =IF('Arbeit 1'!A34<>"",'Arbeit 1'!A34,"") ->  | B32: =IF('Arbeit 1'!D34<>"",('Arbeit 1'!D34)*1,"") ->  | C32: =IF('Arbeit 2'!D34<>"",('Arbeit 2'!D34)*1,"") ->  | D32: =IF('Arbeit 3'!D34<>"",('Arbeit 3'!D34)*1,"") ->  | E32: =IF('Arbeit 4'!D34<>"",('Arbeit 4'!D34)*1,"") -> 
A33: =IF('Arbeit 1'!A35<>"",'Arbeit 1'!A35,"") ->  | B33: =IF('Arbeit 1'!D35<>"",('Arbeit 1'!D35)*1,"") ->  | C33: =IF('Arbeit 2'!D35<>"",('Arbeit 2'!D35)*1,"") ->  | D33: =IF('Arbeit 3'!D35<>"",('Arbeit 3'!D35)*1,"") ->  | E33: =IF('Arbeit 4'!D35<>"",('Arbeit 4'!D35)*1,"") -> 
A34: =IF('Arbeit 1'!A36<>"",'Arbeit 1'!A36,"") ->  | B34: =IF('Arbeit 1'!D36<>"",('Arbeit 1'!D36)*1,"") ->  | C34: =IF('Arbeit 2'!D36<>"",('Arbeit 2'!D36)*1,"") ->  | D34: =IF('Arbeit 3'!D36<>"",('Arbeit 3'!D36)*1,"") ->  | E34: =IF('Arbeit 4'!D36<>"",('Arbeit 4'!D36)*1,"") -> 
A35: =IF('Arbeit 1'!A37<>"",'Arbeit 1'!A37,"") ->  | B35: =IF('Arbeit 1'!D37<>"",('Arbeit 1'!D37)*1,"") ->  | C35: =IF('Arbeit 2'!D37<>"",('Arbeit 2'!D37)*1,"") ->  | D35: =IF('Arbeit 3'!D37<>"",('Arbeit 3'!D37)*1,"") ->  | E35: =IF('Arbeit 4'!D37<>"",('Arbeit 4'!D37)*1,"") -> 
A36: =IF('Arbeit 1'!A38<>"",'Arbeit 1'!A38,"") ->  | B36: =IF('Arbeit 1'!D38<>"",('Arbeit 1'!D38)*1,"") ->  | C36: =IF('Arbeit 2'!D38<>"",('Arbeit 2'!D38)*1,"") ->  | D36: =IF('Arbeit 3'!D38<>"",('Arbeit 3'!D38)*1,"") ->  | E36: =IF('Arbeit 4'!D38<>"",('Arbeit 4'!D38)*1,"") -> 
A37: =IF('Arbeit 1'!A39<>"",'Arbeit 1'!A39,"") ->  | B37: =IF('Arbeit 1'!D39<>"",('Arbeit 1'!D39)*1,"") ->  | C37: =IF('Arbeit 2'!D39<>"",('Arbeit 2'!D39)*1,"") ->  | D37: =IF('Arbeit 3'!D39<>"",('Arbeit 3'!D39)*1,"") ->  | E37: =IF('Arbeit 4'!D39<>"",('Arbeit 4'!D39)*1,"") -> 
A38: =IF('Arbeit 1'!A40<>"",'Arbeit 1'!A40,"") ->  | B38: =IF('Arbeit 1'!D40<>"",('Arbeit 1'!D40)*1,"") ->  | C38: =IF('Arbeit 2'!D40<>"",('Arbeit 2'!D40)*1,"") ->  | D38: =IF('Arbeit 3'!D40<>"",('Arbeit 3'!D40)*1,"") ->  | E38: =IF('Arbeit 4'!D40<>"",('Arbeit 4'!D40)*1,"") -> 
A39: =IF('Arbeit 1'!A41<>"",'Arbeit 1'!A41,"") ->  | B39: =IF('Arbeit 1'!D41<>"",('Arbeit 1'!D41)*1,"") ->  | C39: =IF('Arbeit 2'!D41<>"",('Arbeit 2'!D41)*1,"") ->  | D39: =IF('Arbeit 3'!D41<>"",('Arbeit 3'!D41)*1,"") ->  | E39: =IF('Arbeit 4'!D41<>"",('Arbeit 4'!D41)*1,"") -> 
A40: =IF('Arbeit 1'!A42<>"",'Arbeit 1'!A42,"") ->  | B40: =IF('Arbeit 1'!D42<>"",('Arbeit 1'!D42)*1,"") ->  | C40: =IF('Arbeit 2'!D42<>"",('Arbeit 2'!D42)*1,"") ->  | D40: =IF('Arbeit 3'!D42<>"",('Arbeit 3'!D42)*1,"") ->  | E40: =IF('Arbeit 4'!D42<>"",('Arbeit 4'!D42)*1,"") -> 
A41: =IF('Arbeit 1'!A43<>"",'Arbeit 1'!A43,"") ->  | B41: =IF('Arbeit 1'!D43<>"",('Arbeit 1'!D43)*1,"") ->  | C41: =IF('Arbeit 2'!D43<>"",('Arbeit 2'!D43)*1,"") ->  | D41: =IF('Arbeit 3'!D43<>"",('Arbeit 3'!D43)*1,"") ->  | E41: =IF('Arbeit 4'!D43<>"",('Arbeit 4'!D43)*1,"") -> 
A42: =IF('Arbeit 1'!A44<>"",'Arbeit 1'!A44,"") ->  | B42: =IF('Arbeit 1'!D44<>"",('Arbeit 1'!D44)*1,"") ->  | C42: =IF('Arbeit 2'!D44<>"",('Arbeit 2'!D44)*1,"") ->  | D42: =IF('Arbeit 3'!D44<>"",('Arbeit 3'!D44)*1,"") ->  | E42: =IF('Arbeit 4'!D44<>"",('Arbeit 4'!D44)*1,"") -> 
A43: =IF('Arbeit 1'!A45<>"",'Arbeit 1'!A45,"") ->  | B43: =IF('Arbeit 1'!D45<>"",('Arbeit 1'!D45)*1,"") ->  | C43: =IF('Arbeit 2'!D45<>"",('Arbeit 2'!D45)*1,"") ->  | D43: =IF('Arbeit 3'!D45<>"",('Arbeit 3'!D45)*1,"") ->  | E43: =IF('Arbeit 4'!D45<>"",('Arbeit 4'!D45)*1,"") -> 
A44: =IF('Arbeit 1'!A46<>"",'Arbeit 1'!A46,"") ->  | B44: =IF('Arbeit 1'!D46<>"",('Arbeit 1'!D46)*1,"") ->  | C44: =IF('Arbeit 2'!D46<>"",('Arbeit 2'!D46)*1,"") ->  | D44: =IF('Arbeit 3'!D46<>"",('Arbeit 3'!D46)*1,"") ->  | E44: =IF('Arbeit 4'!D46<>"",('Arbeit 4'!D46)*1,"") -> 
A45: =IF('Arbeit 1'!A47<>"",'Arbeit 1'!A47,"") ->  | B45: =IF('Arbeit 1'!D47<>"",('Arbeit 1'!D47)*1,"") ->  | C45: =IF('Arbeit 2'!D47<>"",('Arbeit 2'!D47)*1,"") ->  | D45: =IF('Arbeit 3'!D47<>"",('Arbeit 3'!D47)*1,"") ->  | E45: =IF('Arbeit 4'!D47<>"",('Arbeit 4'!D47)*1,"") -> 
A46: =IF('Arbeit 1'!A48<>"",'Arbeit 1'!A48,"") ->  | B46: =IF('Arbeit 1'!D48<>"",('Arbeit 1'!D48)*1,"") ->  | C46: =IF('Arbeit 2'!D48<>"",('Arbeit 2'!D48)*1,"") ->  | D46: =IF('Arbeit 3'!D48<>"",('Arbeit 3'!D48)*1,"") ->  | E46: =IF('Arbeit 4'!D48<>"",('Arbeit 4'!D48)*1,"") -> 
A47: =IF('Arbeit 1'!A49<>"",'Arbeit 1'!A49,"") ->  | B47: =IF('Arbeit 1'!D49<>"",('Arbeit 1'!D49)*1,"") ->  | C47: =IF('Arbeit 2'!D49<>"",('Arbeit 2'!D49)*1,"") ->  | D47: =IF('Arbeit 3'!D49<>"",('Arbeit 3'!D49)*1,"") ->  | E47: =IF('Arbeit 4'!D49<>"",('Arbeit 4'!D49)*1,"") -> 
A48: =IF('Arbeit 1'!A50<>"",'Arbeit 1'!A50,"") ->  | B48: =IF('Arbeit 1'!D50<>"",('Arbeit 1'!D50)*1,"") ->  | C48: =IF('Arbeit 2'!D50<>"",('Arbeit 2'!D50)*1,"") ->  | D48: =IF('Arbeit 3'!D50<>"",('Arbeit 3'!D50)*1,"") ->  | E48: =IF('Arbeit 4'!D50<>"",('Arbeit 4'!D50)*1,"") -> 
